Cogmind - Beta 11.1 @@@ ROGUE MODE // 2022.12.07 @ 13:40:18 Player: Heclapar Result: Destroyed by G-34 Mercenary with Small Laser Performance ------------- Evolutions (0) 0 Regions Visited (2) 400 Robots Destroyed (20) 100 Value Destroyed (561) 561 Prototype IDs (0) 0 Alien Tech Used (0) 0 Bonus (0) 0 TOTAL SCORE: 1061 Bonus ------- None Cogmind --------- Core Integrity 0/250 Matter 300/300 Energy 125/125 System Corruption 0% Temperature Cool (6) Movement Treading (160) Location -10/Mines Parts ------- > --- POWER (1) -------- Light Ion Engine > --- PROPULSION (2) --- Light Treads Light Treads > --- UTILITY (2) ------ Heat Sink Medium Storage Unit > --- WEAPON (2) ------- Small Laser Small Laser > --- INVENTORY (10) --- Light Angular Momentum Engine Aluminum Leg Compact Wheel High-capacity Storage Unit Huge Storage Unit Small Laser Peak State ------------ > --- POWER ------------ Ion Engine > --- PROPULSION ------- Aluminum Leg Aluminum Leg > --- UTILITY ---------- Heat Sink Medium Storage Unit > --- WEAPON ----------- Light Assault Rifle Light Assault Rifle > --- INVENTORY -------- Light Ion Engine Light Treads Light Treads Aluminum Leg Compact Wheel High-capacity Storage Unit Huge Storage Unit Small Laser Small Laser Small Laser [Rating: 8] Favorites ----------- Power Ion Engine Engine Ion Engine Propulsion Aluminum Leg Treads Light Treads Leg Aluminum Leg Utility Heat Sink Device Heat Sink Storage Medium Storage Unit Processor Targeting Computer Weapon Light Assault Rifle Energy Gun Small Laser Ballistic Gun Light Assault Rifle Build | -11 -10 -10 ------- Run | Scr Mat Min Slots Evolved . | . . . Power . | . . . Propulsion . | . . . Utility . | . . . Weapon . | . . . Parts Attached 13 | . 6 7 Power 2 | . 1 1 Engine 2 | . 1 1 Core . | . . . Reactor . | . . . Propulsion 4 | . 1 3 Treads 2 | . . 2 Leg 2 | . 1 1 Wheel . | . . . Hover . | . . . Flight . | . . . Utility 5 | . 4 1 Device 3 | . 2 1 Storage 1 | . 1 . Processor 1 | . 1 . Hackware . | . . . Protection . | . . . Artifact . | . . . Weapon 2 | . . 2 Energy Gun 2 | . . 2 Energy Cannon . | . . . Ballistic Gun . | . . . Ballistic Cannon . | . . . Launcher . | . . . Special Weapon . | . . . Impact Weapon . | . . . Slashing Weapon . | . . . Piercing Weapon . | . . . Special Melee Weapon . | . . . Unidentified Prototypes . | . . . Parts Lost 10 | . 4 6 Power 2 | . 1 1 Propulsion 4 | . 2 2 Utility 2 | . 1 1 Weapon 2 | . . 2 Highest Loss Streak 3 | . 3 3 To Critical Strikes . | . . . Average Slot Usage (%) 97 | . 92 98 Engine 13 | . 13 13 Treads 6 | . . 7 Leg 21 | . 27 19 Device 11 | . 4 13 Storage 14 | . 14 14 Energy Gun 7 | . . 9 Ballistic Gun 20 | . 28 17 Naked Turns . | . . . Heaviest Build 18 | 10 18 18 Greatest Support 40 | 20 20 40 Greatest Overweight (x) 1 | . 1 1 Average Overweight (x) . | . . . Largest Inventory Capacity 10 | 8 10 10 Average Capacity 9 | 8 8 10 Most Carried 10 | 6 8 10 Average Carried 7 | 6 7 7 Final Capacity 10 | 8 10 10 Final Carried 8 | 6 8 6 Class Distribution -------------------- 50% | Scavenger-Mutant 49% | Mutant Dominant Class ---------------- Mutant | -10/Materials Scavenger-Mutant | -10/Mines Resources | -11 -10 -10 ----------- Run | Scr Mat Min Matter Collected 429 | 200 132 97 Remotely . | . . . Salvage Created 680 | . 244 436 Parts 40 | . 15 25 Haulers Intercepted . | . . . Recyclers Shooed . | . . . Parts Field Recycled . | . . . Retrieved Matter . | . . . Parts Self-Destructed . | . . . Prevented . | . . . Kills | -11 -10 -10 ------- Run | Scr Mat Min Combat Hostiles Destroyed 18 | . 6 12 Guns 18 | . 6 12 Classes Destroyed 4 | . 2 2 Worker 1 | . 1 . Tunneler 1 | . . 1 Swarmer 3 | . . 3 Grunt 15 | . 6 9 Best Kill Streak 6 | . 2 6 Combat Bots Only 5 | . 2 5 Max Kills in Single Turn 1 | . 1 1 Gunslinging . | . . . Exploded . | . . . Melee . | . . . Uniques/NPCs Destroyed . | . . . Combat | -11 -10 -10 -------- Run | Scr Mat Min Damage Taken 1023 | . 573 450 Core 253 | . 166 87 Absorbed by Shields . | . . . Core Remaining (%) 100 | 100 . . Volleys Fired 96 | . 46 50 Largest 2 | . 2 2 Hottest 80 | . 40 80 Shots Fired 181 | . 92 89 Gun 181 | . 92 89 Cannon . | . . . Launcher . | . . . Special . | . . . Kinetic 142 | . 92 50 Thermal 39 | . . 39 Explosive . | . . . Electromagnetic . | . . . Robot Hit Streak 24 | . 12 24 Robot Miss Streak 5 | . 5 2 Penetration Max . | . . . Secondary Targets . | . . . Shots Hit Robots 139 | . 68 71 Core Hits 41 | . 18 23 Critical Kills . | . . . Critical Parts Destroyed . | . . . Critical Strikes . | . . . Melee Attacks . | . . . Impact . | . . . Slashing . | . . . Piercing . | . . . Sneak Attacks . | . . . Combat Hostiles . | . . . Follow-up Attacks . | . . . Damage Inflicted 1246 | . 547 699 Guns 1230 | . 547 683 Cannons . | . . . Explosions . | . . . Melee . | . . . Ramming 16 | . . 16 Kinetic 832 | . 547 285 Thermal 398 | . . 398 Explosive . | . . . Electromagnetic . | . . . Impact . | . . . Slashing . | . . . Piercing . | . . . Highest Corruption . | . . . Average Corruption . | . . . Corruption Purged . | . . . Corruption Blocked . | . . . Overload Shots . | . . . Overflow Damage . | . . . Projectiles . | . . . Explosions . | . . . Melee . | . . . Knockbacks . | . . . Impact . | . . . Kinetic . | . . . Secondary . | . . . Self-Inflicted Damage . | . . . Shots . | . . . Rammed . | . . . Targets Rammed 4 | . . 4 Kicked 4 | . . 4 Crushed . | . . . Highest Temperature 18 | . 18 6 Average Temperature 6 | . 7 4 Received Heat Transfer 519 | . 315 204 Siege Activations . | . . . Robots Corrupted . | . . . Combat Hostiles . | . . . Parts Fried . | . . . Impact Corruptions . | . . . Robots Melted . | . . . Combat Hostiles . | . . . Parts Melted 3 | . . 3 Heat Transferred 925 | . . 925 Parts Sabotaged . | . . . Parts Stolen . | . . . Parts Stripped . | . . . Power Chain Reactions . | . . . Missiles Intercepted . | . . . Alert | -11 -10 -10 ------- Run | Scr Mat Min Peak Influence 210 | . 135 210 Initial 15 | . . 15 Average 69 | . 63 71 Maximum Alert Level 1 | . . 1 Low Security (%) 92 | 100 100 90 Level 1 7 | . . 9 Level 2 . | . . . Level 3 . | . . . Level 4 . | . . . Level 5 . | . . . High Security . | . . . Max Security . | . . . Squads Dispatched 2 | . 2 . Investigation 2 | . 2 . Extermination . | . . . Reinforcement . | . . . Assault . | . . . Garrison . | . . . Intercept . | . . . Searches Triggered . | . . . Construction Impeded . | . . . Haulers Reinforced . | . . . Active Scanning Responses . | . . . Cargo Convoy Interrupts . | . . . Stealth | -11 -10 -10 --------- Run | Scr Mat Min Distress Signals 1 | . 1 . Communications Jammed . | . . . Distress Signals . | . . . Times Spotted 25 | . 8 17 Peak Tracking Total 4 | . 3 4 Tactical Retreats 3 | . 1 2 Traps | -11 -10 -10 ------- Run | Scr Mat Min Traps Triggered . | . . . Indirectly . | . . . Trap Hack Attempts . | . . . Triggered . | . . . Disarmed . | . . . Reprogrammed . | . . . Reused . | . . . Traps Extracted . | . . . Installed . | . . . Triggered . | . . . Machines | -11 -10 -10 ---------- Run | Scr Mat Min Machines Disabled . | . . . Max in Single Turn . | . . . Machines Sabotaged . | . . . Garrisons Compromised . | . . . Overloaded Fab Kills . | . . . Hacking | -11 -10 -10 --------- Run | Scr Mat Min Machines Accessed 3 | . 3 . Terminals 3 | . 3 . Fabricators . | . . . Repair Stations . | . . . Recycling Units . | . . . Scanalyzers . | . . . Garrison Access . | . . . Total Hacks 8 | . 8 . Successful 2 | . 2 . Failed 6 | . 6 . Catastrophic . | . . . Database Lockouts . | . . . Manual 7 | . 7 . Terminals 8 | . 8 . Fabricators . | . . . Repair Stations . | . . . Recycling Units . | . . . Scanalyzers . | . . . Garrison Access . | . . . Terminal Hacks . | . . . Fabricator Hacks . | . . . Repair Station Hacks . | . . . Recycling Unit Hacks . | . . . Scanalyzer . | . . . Garrison Access Hacks . | . . . Unauthorized Hacks 2 | . 2 . Terminals 2 | . 2 . Botnet 2 | . 2 . Fabricators . | . . . Repair Stations . | . . . Recycling Units . | . . . Scanalyzers . | . . . Garrison Access . | . . . Data Cores Recovered . | . . . Used . | . . . Hacking Detections 3 | . 3 . Full Trace Events 2 | . 2 . Feedback Events . | . . . Feedback Blocked . | . . . Robot Schematics Acquired . | . . . Robots Built . | . . . Authchips . | . . . Time . | . . . Total Robot Build Rating . | . . . Part Schematics Acquired . | . . . Parts Built . | . . . Authchips . | . . . Time . | . . . Total Part Build Rating . | . . . Parts Repaired . | . . . Time . | . . . Parts Recycled . | . . . Recycled Matter . | . . . Retrieved Matter . | . . . Retrieved Components . | . . . Parts Scanalyzed . | . . . Part Schematics Acquired . | . . . Parts Damaged . | . . . Bothacking | -11 -10 -10 ------------ Run | Scr Mat Min Used RIF Installer . | . . . Robots Hacked . | . . . Non-combat . | . . . Combat . | . . . Robot Hacks Applied . | . . . Relay Couplers Released . | . . . Fabnet Peak Effective % . | . . . Robots Rewired . | . . . Allies Hacked . | . . . Hacks Repelled . | . . . Allies | -11 -10 -10 -------- Run | Scr Mat Min Total Allies 1 | . . 1 Largest Group 1 | . . 1 Highest-Rated Group 31 | . . 31 Highest-Rated Ally 31 | . . 31 Total Orders . | . . . Ally Attacks 1 | . . 1 Total Damage . | . . . Kills . | . . . Allies Corrupted . | . . . Allies Melted . | . . . Intel | -11 -10 -10 ------- Run | Scr Mat Min Robot Analysis Total . | . . . Derelict Logs Recovered 1 | . . 1 Drone Launches . | . . . Drone Recoveries . | . . . Exploration | -11 -10 -10 ------------- Run | Scr Mat Min Turns Passed 1948 | 4 444 1500 Spaces Moved 839 | 4 216 619 Core . | . . . Treads 246 | . . 246 Legs 593 | 4 216 373 Wheels . | . . . Hover . | . . . Flight . | . . . Fastest Speed 120 | 120 120 120 Average Speed 132 | 120 123 136 Slowest Speed 190 | 120 190 190 Overloaded Moves . | . . . Propulsion Burnouts . | . . . Robots Hopped . | . . . Cave-ins Triggered . | . . . Exploration Rate (%) 35 | 2 42 62 Regions Visited 2 Branch Regions 1 Pre-discovered Areas 1 | . . 1 Known Exits Taken . | . . . Unknown Exits Taken 2 | 1 1 . Scrap Searched 1 | . . 1 Spaces Dug . | . . . Terrain Destroyed . | . . . Melee . | . . . Projectile . | . . . AOE . | . . . Terrain Rammed . | . . . Walls Destroyed . | . . . Machines Disabled . | . . . Actions | -11 -10 -10 --------- Run | Scr Mat Min Total 1518 | 3 320 1195 Wait 553 | . 43 510 Move 837 | 3 215 619 Hop . | . . . Pick Up 12 | . 7 5 Fast Attach 2 | . 2 . Attach 9 | . 2 7 Detach . | . . . Swap 2 | . 2 . Drop 3 | . 3 . Fire 96 | . 46 50 Melee . | . . . Ram . | . . . Kick 4 | . . 4 Crush . | . . . Escape Stasis . | . . . Rewire . | . . . Trap . | . . . Miscellaneous . | . . . Route ------- -11/Scrapyard -10/Materials (discovered 2 exits: [*Mat] / [*Min]) -10/Mines History --------- Turn | Location | Event 1 | -11/Scrapyard | Discovered new exit (range 1) 5 | -11/Scrapyard | Entered Materials 235 | -10/Materials | Discovered new exit (range 5) 300 | -10/Materials | Build established: Mutant 331 | -10/Materials | Lost 3 parts (1p1n1u) 345 | -10/Materials | Discovered new exit (range 12) 407 | -10/Materials | Core integrity fell below 50% 449 | -10/Materials | Entered Mines 680 | -10/Mines | Received a Mining Laser from a helpful Derelict 736 | -10/Mines | Build established: Scavenger-Mutant 842 | -10/Mines | Excavation squad dispatched 842 | -10/Mines | A large section of the Mines collapsed 1092 | -10/Mines | Excavation squad dispatched 1341 | -10/Mines | Core integrity fell below 20% 1342 | -10/Mines | Excavation squad dispatched 1482 | -10/Mines | Lost 3 parts (1p1n1w) 1533 | -10/Mines | Learned location of Recycling (-8) 1592 | -10/Mines | Excavation squad dispatched 1754 | -10/Mines | Build established: Mutant 1842 | -10/Mines | Excavation squad dispatched 1949 | -10/Mines | Destroyed by G-34 Mercenary with Small Laser Last Messages --------------- 01459_ Heat Sink melted. 01459_ G-34 Mercenary destroyed. 01466_ K-01 Serf collects debris. 01478_ G-34 Mercenary destroyed. 01481_ K-01 Serf collects debris. 01495_ T-07 Excavator destroyed. 01498_ Acquired 17 matter. 01517_ Aluminum Leg destroyed. 01525_ Ion Engine melted. 01525_ Aluminum Leg melted. 01525_ G-34 Mercenary destroyed. 01531_ Acquired 20 matter. 01533_ Acquired derelict log, extracted data. World map updated: -8/Recycling. 01539_ K-01 Serf collects debris. 01592_ ALERT: Derelict activity in mines confirmed. Dispatching additional escorted excavation squad. 01678_ K-01 Serf cleans the Pressure Siphon. 01842_ ALERT: Derelict activity in mines confirmed. Dispatching additional escorted excavation squad. Map ----- +----------------------------------------------------+ | ??????# #???####??## ##??????## | | ?????## #??## #### ##????????# | | ?????# #### ## ##?????????? | | ????## ### ##??????????? | | ???## ## ##???????????? | | ??## ##????????????? | | ??# ####?????????????? | | ??# """" ##????????????????? | | ??# """" ##?????????????????? | | ??# """" #??????????????????? | | ??## #??????????????????? | | ???## ## ### #??????????????????? | | ????# ### ##?# #??????????????????? | | ????# #?####??# #??????????????????? | | ????# #???????# #??????????????????? | | ????# #???????# #??????????????????? | | ????# #########!*#?????????????????## | | ????# !%#?????????????????# | | ????########### #???????????####??# | | ??????????????# #?????????###=###?# | | ????####??????# #????????## !% #?# | | ???## ######?# #????????# = #??# | | ???# ## ### #####????#[*=*##### | | ???# ## g #???##%%%=% %"" | | ???## ### #??## | [=##### | | ????# @ #?# #?## % %%*#???## | | ???## ## ##?# ###* ##????? | | ???# ### #??#%[%=%% ##?????? | | ???# t##?# #??##!### #??????? | | ???# #??# #???#%#?## ##??????? | | ???# #??# #???#=#??####???????? | | ???# #??# #???#%#?????????????? | | ??## #??# #???# ########??????? | | ??# #??# #???# ![===%%#??????? | | ??# #??# #???########[###????? | | ??# """ #??# #??????????#%*%#????? | | ??## """ ##??# #??????????###%#????? | | ???# """ #???# #????????????# ##???? | | ???# """ #???# ###?????????##% ##### | | ???# ##???# #?????????# ## | | ???# ##????### #?????????# % | | ???## ##?#####?# #?????????## # | | ????####?## ### #??????????# ## | | ????????## ## #??????????# #? | | ????????# ##?????????## ## | | ????????# ######?????# # | | ????????## ##???## | | ?????????###### #???# # | | ??????????????##### #???# # | | ??????????????????##| #???# | +----------------------------------------------------+ Best States ------------- Heat Dissipation 35 Energy Generation 10 Energy Capacity 250 Matter Stores 300 Matter Capacity 300 Sight Range 16 Terrain Scan Density 10 Evasion (%) 55 Targeting Accuracy 5 Recoil Reduction 2 Item Schematics ----------------- None Robot Schematics ------------------ None Fabricated ------------ Nothing Alien Tech Used ----------------- None Achievements -------------- None Challenges ------------ None Game ------ Seed ImpulseHardenedNeutralizer Manual? 0 Play Time 00:08:42 Cumulative 43.7 hours Start 2022.12.06 @ 16:10:43 End 2022.12.07 @ 13:40:18 Sessions 3 Manual Loads 0 Difficulty Rogue Special Mode None Game No. 47 Rogue 47 Adventurer 0 Explorer 0 Win Type - Total 0 Types 0/0/0/0/0/0/0/0/0 Lore% 34 Gallery% 44 Achievement% 36 Wizard Run 0 Options --------- ASCII 0 Keyboard 0 Movement Mouse Keybinds 0 Fullscreen 1 Font 18/TerminusBold Map View 76x50 Tactical HUD 1 Map Filters NONE Filters NONE Steam 1 RUN: 71414947-9447-4b18-bcaa-2aa87721b428